[Event "Titled Tuesday Blitz May 16 Early 2023"]
[White "Da Matta, Eduardo Cesar"]
[Black "Gontcharov, Vladislav"]
[WhiteFideId "2193108"]
[BlackFideId "4123492"]
[WhiteElo "1981"]
[BlackElo "2420"]
[Result "1-0"]
[Round "01"]
[TimeControl "180+2"]
[Date "2023.05.16"]
[WhiteClock "0:00:09"]
[BlackClock "0:00:00"]

1. d4 {[%clk 0:02:57]}  Nf6 {[%clk 0:02:59]} 2. c4 {[%clk 0:02:56]}  e6 {[%clk 0:02:56]} 3. Nc3 {[%clk 0:02:56]}  Bb4 {[%clk 0:02:55]} 4. e3 {[%clk 0:02:56]}  O-O {[%clk 0:02:54]} 5. Bd3 {[%clk 0:02:56]}  d5 {[%clk 0:02:51]} 6. cxd5 {[%clk 0:02:55]}  exd5 {[%clk 0:02:49]} 7. Ne2 {[%clk 0:02:56]}  c6 {[%clk 0:02:47]} 8. O-O {[%clk 0:02:56]}  Re8 {[%clk 0:02:45]} 9. a3 {[%clk 0:02:55]}  Bd6 {[%clk 0:02:44]} 10. f3 {[%clk 0:02:55]}  c5 {[%clk 0:02:26]} 11. dxc5 {[%clk 0:02:50]}  Bxc5 {[%clk 0:02:26]} 12. Nd4 {[%clk 0:02:51]}  Nc6 {[%clk 0:02:25]} 13. Kh1 {[%clk 0:02:43]}  h6 {[%clk 0:01:58]} 14. Bc2 {[%clk 0:02:39]}  Ne5 {[%clk 0:01:46]} 15. e4 {[%clk 0:02:26]}  dxe4 {[%clk 0:01:44]} 16. Nb3 {[%clk 0:02:22]}  Bd6 {[%clk 0:01:30]} 17. Nxe4 {[%clk 0:02:19]}  Nxe4 {[%clk 0:01:30]} 18. Bxe4 {[%clk 0:02:19]}  Qe7 {[%clk 0:01:21]} 19. Be3 {[%clk 0:02:01]}  Be6 {[%clk 0:01:16]} 20. Nd4 {[%clk 0:01:57]}  Rad8 {[%clk 0:01:13]} 21. Nxe6 {[%clk 0:01:49]}  Qxe6 {[%clk 0:01:13]} 22. Qa4 {[%clk 0:01:41]}  b6 {[%clk 0:00:37]} 23. Qxa7 {[%clk 0:01:21]}  Nc4 {[%clk 0:00:27]} 24. Bg1 {[%clk 0:01:11]}  Be5 {[%clk 0:00:26]} 25. Rad1 {[%clk 0:01:03]}  Bxb2 {[%clk 0:00:24]} 26. Rxd8 {[%clk 0:00:59]}  Rxd8 {[%clk 0:00:24]} 27. Qc7 {[%clk 0:00:56]}  Rc8 {[%clk 0:00:21]} 28. Qf4 {[%clk 0:00:51]}  Bxa3 {[%clk 0:00:20]} 29. Bf5 {[%clk 0:00:47]}  Qe8 {[%clk 0:00:17]} 30. Bxc8 {[%clk 0:00:47]}  Qxc8 {[%clk 0:00:17]} 31. Ra1 {[%clk 0:00:42]}  b5 {[%clk 0:00:12]} 32. Bd4 {[%clk 0:00:38]}  Qe6 {[%clk 0:00:12]} 33. Qb8+ {[%clk 0:00:32]}  Kh7 {[%clk 0:00:12]} 34. Qxb5 {[%clk 0:00:32]}  Be7 {[%clk 0:00:12]} 35. Qb3 {[%clk 0:00:28]}  Bg5 {[%clk 0:00:11]} 36. h3 {[%clk 0:00:22]}  Qd5 {[%clk 0:00:09]} 37. Rd1 {[%clk 0:00:20]}  Qe6 {[%clk 0:00:06]} 38. Bf2 {[%clk 0:00:16]}  Ne5 {[%clk 0:00:06]} 39. Qc2+ {[%clk 0:00:16]}  Ng6 {[%clk 0:00:05]} 40. Re1 {[%clk 0:00:15]}  Qf6 {[%clk 0:00:06]} 41. Qe2 {[%clk 0:00:14]}  Bf4 {[%clk 0:00:06]} 42. Qe4 {[%clk 0:00:14]}  Qg5 {[%clk 0:00:06]} 43. Be3 {[%clk 0:00:13]}  Bxe3 {[%clk 0:00:06]} 44. Qxe3 {[%clk 0:00:13]}  Nf4 {[%clk 0:00:07]} 45. Qf2 {[%clk 0:00:12]}  Qf5 {[%clk 0:00:06]} 46. Re4 {[%clk 0:00:10]}  Ng6 {[%clk 0:00:06]} 47. Qd4 {[%clk 0:00:10]}  Qc8 {[%clk 0:00:05]} 48. Re1 {[%clk 0:00:08]}  Qc7 {[%clk 0:00:05]} 49. Qe4 {[%clk 0:00:09]}  h5 {[%clk 0:00:04]} 50. h4 {[%clk 0:00:09]}  Kh6 {[%clk 0:00:05]} 51. g3 {[%clk 0:00:09]}  Qxg3 {[%clk 0:00:04]} 52. Qe3+ {[%clk 0:00:09]}  Kh7 {[%clk 0:00:04]} 53. Qe4 {[%clk 0:00:09]}  Qh3+ {[%clk 0:00:02]} 54. Kg1 {[%clk 0:00:09]}  Qg3+ {[%clk 0:00:03]} 55. Kf1 {[%clk 0:00:09]}  Kh6 {[%clk 0:00:03]} 56. Qe3+ {[%clk 0:00:09]}  Nf4 {[%clk 0:00:03]} 57. Rc1 {[%clk 0:00:08]}  Qxh4 {[%clk 0:00:01]} 58. Rc4 {[%clk 0:00:08]}  g5 {[%clk 0:00:00]} 59. Re4 {[%clk 0:00:09]} 1-0


[Site "https://www.chess.com"]

[Event "Titled Tuesday Blitz May 16 Early 2023"]
[White "Winkels, Marcel"]
[Black "Manukyan, Sargis V."]
[WhiteFideId "1003887"]
[BlackFideId "13303465"]
[WhiteElo "1900"]
[BlackElo "2236"]
[Result "0-1"]
[Round "01"]
[TimeControl "180+2"]
[Date "2023.05.16"]
[WhiteClock "0:00:00"]
[BlackClock "0:00:42"]

1. d4 {[%clk 0:02:38]}  Nf6 {[%clk 0:02:57]} 2. Nc3 {[%clk 0:02:35]}  d5 {[%clk 0:02:57]} 3. Bf4 {[%clk 0:02:34]}  a6 {[%clk 0:02:51]} 4. e3 {[%clk 0:02:33]}  c5 {[%clk 0:02:41]} 5. Nf3 {[%clk 0:02:29]}  Nc6 {[%clk 0:02:34]} 6. Be2 {[%clk 0:02:17]}  e6 {[%clk 0:02:31]} 7. O-O {[%clk 0:02:13]}  Be7 {[%clk 0:02:27]} 8. Ne5 {[%clk 0:02:11]}  O-O {[%clk 0:02:19]} 9. a3 {[%clk 0:02:04]}  Nd7 {[%clk 0:02:02]} 10. Nxc6 {[%clk 0:01:44]}  bxc6 {[%clk 0:02:01]} 11. dxc5 {[%clk 0:01:45]}  e5 {[%clk 0:01:46]} 12. Bg3 {[%clk 0:01:39]}  Bxc5 {[%clk 0:01:41]} 13. b4 {[%clk 0:01:21]}  Bd6 {[%clk 0:01:38]} 14. Bf3 {[%clk 0:01:15]}  Bb7 {[%clk 0:01:33]} 15. h3 {[%clk 0:01:02]}  Qe7 {[%clk 0:01:28]} 16. Be2 {[%clk 0:00:50]}  f5 {[%clk 0:01:26]} 17. f4 {[%clk 0:00:46]}  exf4 {[%clk 0:01:17]} 18. exf4 {[%clk 0:00:42]}  Qe3+ {[%clk 0:01:16]} 19. Kh2 {[%clk 0:00:36]}  Qxc3 {[%clk 0:01:17]} 20. Rb1 {[%clk 0:00:23]}  Qf6 {[%clk 0:01:07]} 21. Bd3 {[%clk 0:00:18]}  Rfe8 {[%clk 0:00:59]} 22. Re1 {[%clk 0:00:17]}  Qf7 {[%clk 0:00:56]} 23. Qd2 {[%clk 0:00:16]}  Rxe1 {[%clk 0:00:50]} 24. Rxe1 {[%clk 0:00:15]}  Nf8 {[%clk 0:00:48]} 25. Qe2 {[%clk 0:00:12]}  Ng6 {[%clk 0:00:46]} 26. Qf3 {[%clk 0:00:00]}  a5 {[%clk 0:00:42]} 0-1


[Site "https://www.chess.com"]

[Event "Titled Tuesday Blitz May 16 Early 2023"]
[White "Bruedigam, Martin"]
[Black "Jaivardhan Raj"]
[WhiteFideId "24608033"]
[BlackFideId "25744437"]
[WhiteElo "2331"]
[BlackElo "1772"]
[Result "1-0"]
[Round "01"]
[TimeControl "180+2"]
[Date "2023.05.16"]
[WhiteClock "0:02:00"]
[BlackClock "0:02:27"]

1. d4 {[%clk 0:02:59]}  Nf6 {[%clk 0:02:58]} 2. c4 {[%clk 0:02:59]}  e6 {[%clk 0:02:57]} 3. Nc3 {[%clk 0:02:59]}  b6 {[%clk 0:02:58]} 4. e4 {[%clk 0:02:58]}  Bb7 {[%clk 0:02:58]} 5. e5 {[%clk 0:02:57]}  Ne4 {[%clk 0:02:59]} 6. Nf3 {[%clk 0:02:49]}  Bb4 {[%clk 0:02:58]} 7. Qb3 {[%clk 0:02:45]}  a5 {[%clk 0:02:53]} 8. Bd3 {[%clk 0:02:43]}  Ng5 {[%clk 0:02:48]} 9. Bxg5 {[%clk 0:02:41]}  f6 {[%clk 0:02:44]} 10. exf6 {[%clk 0:02:32]}  gxf6 {[%clk 0:02:43]} 11. Bh4 {[%clk 0:02:31]}  Qe7 {[%clk 0:02:41]} 12. a3 {[%clk 0:02:24]}  Bxc3+ {[%clk 0:02:41]} 13. Qxc3 {[%clk 0:02:24]}  Qg7 {[%clk 0:02:40]} 14. Bg3 {[%clk 0:02:21]}  h5 {[%clk 0:02:39]} 15. h4 {[%clk 0:02:16]}  Rg8 {[%clk 0:02:36]} 16. O-O-O {[%clk 0:02:11]}  Qh6+ {[%clk 0:02:35]} 17. Kb1 {[%clk 0:02:11]}  Nc6 {[%clk 0:02:35]} 18. d5 {[%clk 0:02:05]}  Ke7 {[%clk 0:02:35]} 19. dxc6 {[%clk 0:02:04]}  Bxc6 {[%clk 0:02:27]} 20. Rhe1 {[%clk 0:02:00]} 1-0


[Site "https://www.chess.com"]

[Event "Titled Tuesday Blitz May 16 Early 2023"]
[White "Lakshmi C"]
[Black "Domingo Nunez, Alejandro"]
[WhiteFideId "25035347"]
[BlackFideId "22245561"]
[WhiteElo "1942"]
[BlackElo "2291"]
[Result "0-1"]
[Round "01"]
[TimeControl "180+2"]
[Date "2023.05.16"]
[WhiteClock "0:00:00"]
[BlackClock "0:00:52"]

1. e4 {[%clk 0:02:50]}  g6 {[%clk 0:02:59]} 2. d4 {[%clk 0:02:31]}  Bg7 {[%clk 0:03:00]} 3. c3 {[%clk 0:02:29]}  c6 {[%clk 0:02:48]} 4. f4 {[%clk 0:02:20]}  d5 {[%clk 0:02:48]} 5. e5 {[%clk 0:02:19]}  f6 {[%clk 0:02:49]} 6. Nf3 {[%clk 0:02:19]}  Nh6 {[%clk 0:02:50]} 7. Bd3 {[%clk 0:02:18]}  O-O {[%clk 0:02:50]} 8. O-O {[%clk 0:02:17]}  Bg4 {[%clk 0:02:45]} 9. Qe1 {[%clk 0:02:15]}  Bxf3 {[%clk 0:02:42]} 10. Rxf3 {[%clk 0:02:15]}  fxe5 {[%clk 0:02:42]} 11. fxe5 {[%clk 0:02:00]}  Rxf3 {[%clk 0:02:43]} 12. gxf3 {[%clk 0:02:00]}  e6 {[%clk 0:02:44]} 13. Qg3 {[%clk 0:01:55]}  Nd7 {[%clk 0:02:42]} 14. Bg5 {[%clk 0:01:53]}  Qf8 {[%clk 0:02:41]} 15. Nd2 {[%clk 0:01:50]}  Nf5 {[%clk 0:02:18]} 16. Qh3 {[%clk 0:00:57]}  c5 {[%clk 0:02:17]} 17. Bxf5 {[%clk 0:00:50]}  Qxf5 {[%clk 0:02:05]} 18. Qxf5 {[%clk 0:00:49]}  gxf5 {[%clk 0:02:06]} 19. Nb3 {[%clk 0:00:31]}  Rc8 {[%clk 0:02:03]} 20. Rc1 {[%clk 0:00:20]}  Kf7 {[%clk 0:02:01]} 21. Kf2 {[%clk 0:00:19]}  b6 {[%clk 0:01:50]} 22. Be3 {[%clk 0:00:18]}  a5 {[%clk 0:01:41]} 23. a4 {[%clk 0:00:17]}  c4 {[%clk 0:01:27]} 24. Nd2 {[%clk 0:00:16]}  Nf8 {[%clk 0:01:27]} 25. Nb1 {[%clk 0:00:14]}  Ng6 {[%clk 0:01:28]} 26. Na3 {[%clk 0:00:13]}  Bf8 {[%clk 0:01:27]} 27. Nb5 {[%clk 0:00:12]}  Be7 {[%clk 0:01:26]} 28. Bg5 {[%clk 0:00:10]}  Bf8 {[%clk 0:01:22]} 29. Bd2 {[%clk 0:00:06]}  Rb8 {[%clk 0:01:09]} 30. Rg1 {[%clk 0:00:05]}  f4 {[%clk 0:00:57]} 31. Rg4 {[%clk 0:00:04]}  Be7 {[%clk 0:00:57]} 32. Rg2 {[%clk 0:00:01]}  h5 {[%clk 0:00:53]} 33. h3 {[%clk 0:00:01]}  Bh4+ {[%clk 0:00:52]} 34. Kf1 {[%clk 0:00:00]}  Bg3 {[%clk 0:00:52]} 0-1


[Site "https://www.chess.com"]

[Event "Titled Tuesday Blitz May 16 Early 2023"]
[White "Shevtchenko, Olesya"]
[Black "Srebrnic, Ana"]
[WhiteFideId "24131890"]
[BlackFideId "14603314"]
[WhiteElo "2003"]
[BlackElo "2181"]
[Result "1-0"]
[Round "01"]
[TimeControl "180+2"]
[Date "2023.05.16"]
[WhiteClock "0:01:46"]
[BlackClock "0:00:02"]

1. e4 {[%clk 0:02:58]}  c5 {[%clk 0:02:57]} 2. Nf3 {[%clk 0:02:58]}  e6 {[%clk 0:02:55]} 3. d4 {[%clk 0:02:58]}  cxd4 {[%clk 0:02:54]} 4. Nxd4 {[%clk 0:02:58]}  a6 {[%clk 0:02:54]} 5. c4 {[%clk 0:02:57]}  Nf6 {[%clk 0:02:51]} 6. Nc3 {[%clk 0:02:54]}  Qc7 {[%clk 0:02:50]} 7. a3 {[%clk 0:02:53]}  b6 {[%clk 0:02:42]} 8. Be3 {[%clk 0:02:51]}  Bb7 {[%clk 0:02:42]} 9. f3 {[%clk 0:02:51]}  d6 {[%clk 0:02:40]} 10. Qd2 {[%clk 0:02:51]}  Be7 {[%clk 0:02:39]} 11. Qf2 {[%clk 0:02:51]}  Nbd7 {[%clk 0:02:33]} 12. Be2 {[%clk 0:02:51]}  Rc8 {[%clk 0:02:31]} 13. O-O {[%clk 0:02:51]}  O-O {[%clk 0:02:30]} 14. Rfd1 {[%clk 0:02:52]}  Ne5 {[%clk 0:02:28]} 15. b3 {[%clk 0:02:45]}  Rfd8 {[%clk 0:02:15]} 16. Rac1 {[%clk 0:02:45]}  Nfd7 {[%clk 0:02:08]} 17. f4 {[%clk 0:02:41]}  Nc6 {[%clk 0:02:07]} 18. b4 {[%clk 0:02:39]}  Nxd4 {[%clk 0:01:59]} 19. Bxd4 {[%clk 0:02:39]}  e5 {[%clk 0:01:49]} 20. Be3 {[%clk 0:02:38]}  Nf6 {[%clk 0:01:43]} 21. Bd3 {[%clk 0:02:26]}  Ng4 {[%clk 0:01:26]} 22. Qg3 {[%clk 0:02:19]}  Nxe3 {[%clk 0:01:25]} 23. Qxe3 {[%clk 0:02:19]}  Bf6 {[%clk 0:01:16]} 24. f5 {[%clk 0:02:19]}  h6 {[%clk 0:01:13]} 25. Rc2 {[%clk 0:02:17]}  Bg5 {[%clk 0:01:12]} 26. Qf2 {[%clk 0:02:17]}  Qe7 {[%clk 0:01:06]} 27. Qxb6 {[%clk 0:02:14]}  Rb8 {[%clk 0:00:59]} 28. Qf2 {[%clk 0:02:13]}  Rdc8 {[%clk 0:00:57]} 29. g3 {[%clk 0:02:13]}  Qd7 {[%clk 0:00:53]} 30. h4 {[%clk 0:02:09]}  Bd8 {[%clk 0:00:52]} 31. Kh2 {[%clk 0:02:08]}  Ba8 {[%clk 0:00:49]} 32. Rdc1 {[%clk 0:02:03]}  Bb6 {[%clk 0:00:48]} 33. Qe2 {[%clk 0:02:02]}  Bd4 {[%clk 0:00:44]} 34. Nd5 {[%clk 0:02:02]}  Bxd5 {[%clk 0:00:43]} 35. cxd5 {[%clk 0:02:02]}  Kf8 {[%clk 0:00:28]} 36. Rc6 {[%clk 0:01:58]}  Rxc6 {[%clk 0:00:26]} 37. dxc6 {[%clk 0:01:57]}  Qc7 {[%clk 0:00:25]} 38. Bxa6 {[%clk 0:01:57]}  Rb6 {[%clk 0:00:18]} 39. Qc4 {[%clk 0:01:52]}  Rb8 {[%clk 0:00:14]} 40. Rc2 {[%clk 0:01:51]}  Ra8 {[%clk 0:00:14]} 41. a4 {[%clk 0:01:50]}  Be3 {[%clk 0:00:08]} 42. a5 {[%clk 0:01:49]}  Bd4 {[%clk 0:00:09]} 43. b5 {[%clk 0:01:49]}  Bc5 {[%clk 0:00:07]} 44. b6 {[%clk 0:01:48]}  Qd8 {[%clk 0:00:06]} 45. c7 {[%clk 0:01:48]}  Qd7 {[%clk 0:00:07]} 46. Bb7 {[%clk 0:01:46]}  Rxa5 {[%clk 0:00:02]} 47. c8=Q+ {[%clk 0:01:46]} 1-0


[Site "https://www.chess.com"]

[Event "Titled Tuesday Blitz May 16 Early 2023"]
[White "brm72"]
[Black "dDobravcan"]
[WhiteElo "2559"]
[BlackElo "2117"]
[Result "0-1"]
[Round "01"]
[TimeControl "180+2"]
[Date "2023.05.16"]
[WhiteClock "0:00:00"]
[BlackClock "0:00:10"]

1. e4 {[%clk 0:03:00]}  d6 {[%clk 0:02:58]} 2. d4 {[%clk 0:02:58]}  Nf6 {[%clk 0:02:58]} 3. Nc3 {[%clk 0:02:57]}  c6 {[%clk 0:02:57]} 4. f3 {[%clk 0:02:50]}  Qb6 {[%clk 0:02:56]} 5. a4 {[%clk 0:02:46]}  a5 {[%clk 0:02:52]} 6. Bc4 {[%clk 0:02:46]}  e5 {[%clk 0:02:44]} 7. Nge2 {[%clk 0:02:42]}  Be7 {[%clk 0:02:41]} 8. Bb3 {[%clk 0:02:30]}  O-O {[%clk 0:02:35]} 9. Be3 {[%clk 0:02:28]}  Na6 {[%clk 0:02:30]} 10. O-O {[%clk 0:01:58]}  Nb4 {[%clk 0:02:24]} 11. Qd2 {[%clk 0:01:53]}  Qc7 {[%clk 0:02:24]} 12. Kh1 {[%clk 0:01:43]}  Re8 {[%clk 0:02:04]} 13. Qe1 {[%clk 0:01:31]}  Be6 {[%clk 0:01:53]} 14. Bxe6 {[%clk 0:01:08]}  Nxc2 {[%clk 0:01:44]} 15. Bxf7+ {[%clk 0:01:05]}  Kxf7 {[%clk 0:01:44]} 16. Qd2 {[%clk 0:01:02]}  Nxa1 {[%clk 0:01:42]} 17. Rxa1 {[%clk 0:01:01]}  Rad8 {[%clk 0:01:39]} 18. f4 {[%clk 0:00:51]}  exd4 {[%clk 0:01:34]} 19. Nxd4 {[%clk 0:00:50]}  Bf8 {[%clk 0:01:32]} 20. Qd3 {[%clk 0:00:48]}  Kg8 {[%clk 0:01:30]} 21. h3 {[%clk 0:00:43]}  h6 {[%clk 0:01:25]} 22. Re1 {[%clk 0:00:42]}  Qf7 {[%clk 0:01:21]} 23. Rf1 {[%clk 0:00:37]}  Qg6 {[%clk 0:01:18]} 24. f5 {[%clk 0:00:35]}  Qg3 {[%clk 0:01:16]} 25. Rf3 {[%clk 0:00:34]}  Qe1+ {[%clk 0:01:15]} 26. Kh2 {[%clk 0:00:33]}  d5 {[%clk 0:01:13]} 27. e5 {[%clk 0:00:17]}  Rxe5 {[%clk 0:01:12]} 28. Bf4 {[%clk 0:00:18]}  Ree8 {[%clk 0:01:10]} 29. Ne6 {[%clk 0:00:18]}  Rd7 {[%clk 0:01:05]} 30. Nxf8 {[%clk 0:00:18]}  Kxf8 {[%clk 0:01:02]} 31. Rg3 {[%clk 0:00:18]}  Ne4 {[%clk 0:00:59]} 32. Nxe4 {[%clk 0:00:17]}  Qxe4 {[%clk 0:00:58]} 33. Qa3+ {[%clk 0:00:16]}  Kf7 {[%clk 0:00:56]} 34. Qc3 {[%clk 0:00:14]}  d4 {[%clk 0:00:53]} 35. Qc4+ {[%clk 0:00:14]}  Rd5 {[%clk 0:00:53]} 36. Bd2 {[%clk 0:00:13]}  Re7 {[%clk 0:00:44]} 37. f6 {[%clk 0:00:13]}  gxf6 {[%clk 0:00:40]} 38. Bxh6 {[%clk 0:00:12]}  Ke8 {[%clk 0:00:38]} 39. Qf1 {[%clk 0:00:09]}  Qf5 {[%clk 0:00:36]} 40. Rf3 {[%clk 0:00:08]}  Qe5+ {[%clk 0:00:34]} 41. Bf4 {[%clk 0:00:09]}  Qe6 {[%clk 0:00:30]} 42. Bg3 {[%clk 0:00:09]}  f5 {[%clk 0:00:30]} 43. Qc1 {[%clk 0:00:07]}  Qe4 {[%clk 0:00:28]} 44. Qg5 {[%clk 0:00:07]}  Rf7 {[%clk 0:00:20]} 45. Qg8+ {[%clk 0:00:07]}  Rf8 {[%clk 0:00:19]} 46. Qg6+ {[%clk 0:00:07]}  Kd7 {[%clk 0:00:19]} 47. Qg7+ {[%clk 0:00:06]}  Qe7 {[%clk 0:00:18]} 48. Qg6 {[%clk 0:00:07]}  Kc8 {[%clk 0:00:15]} 49. h4 {[%clk 0:00:04]}  d3 {[%clk 0:00:14]} 50. Rf1 {[%clk 0:00:05]}  d2 {[%clk 0:00:14]} 51. Rd1 {[%clk 0:00:04]}  Qe4 {[%clk 0:00:13]} 52. h5 {[%clk 0:00:04]}  Rd7 {[%clk 0:00:12]} 53. h6 {[%clk 0:00:04]}  Qg4 {[%clk 0:00:11]} 54. Qxg4 {[%clk 0:00:00]}  fxg4 {[%clk 0:00:10]} 0-1


[Site "https://www.chess.com"]

[Event "Titled Tuesday Blitz May 16 Early 2023"]
[White "ritanovikova"]
[Black "Altman, Joshua"]
[BlackFideId "426210"]
[WhiteElo "2115"]
[BlackElo "2028"]
[Result "0-1"]
[Round "01"]
[TimeControl "180+2"]
[Date "2023.05.16"]
[WhiteClock "0:00:00"]
[BlackClock "0:00:14"]

1. e4 {[%clk 0:02:02]}  e6 {[%clk 0:02:59]} 2. d4 {[%clk 0:02:02]}  d5 {[%clk 0:03:00]} 3. exd5 {[%clk 0:02:01]}  exd5 {[%clk 0:03:01]} 4. Bd3 {[%clk 0:02:02]}  Nc6 {[%clk 0:02:58]} 5. Nf3 {[%clk 0:02:01]}  Bd6 {[%clk 0:02:58]} 6. h3 {[%clk 0:02:00]}  Nge7 {[%clk 0:02:53]} 7. O-O {[%clk 0:02:01]}  Bf5 {[%clk 0:02:53]} 8. Bxf5 {[%clk 0:01:59]}  Nxf5 {[%clk 0:02:53]} 9. Re1+ {[%clk 0:01:59]}  Nfe7 {[%clk 0:02:49]} 10. Nc3 {[%clk 0:01:59]}  a6 {[%clk 0:02:48]} 11. Nxd5 {[%clk 0:01:58]}  Bh2+ {[%clk 0:02:34]} 12. Kxh2 {[%clk 0:01:49]}  Qxd5 {[%clk 0:02:34]} 13. c4 {[%clk 0:01:46]}  Qxc4 {[%clk 0:02:26]} 14. d5 {[%clk 0:01:45]}  O-O-O {[%clk 0:02:23]} 15. Ne5 {[%clk 0:01:27]}  Nxe5 {[%clk 0:02:19]} 16. Rxe5 {[%clk 0:01:24]}  Nxd5 {[%clk 0:02:15]} 17. Qh5 {[%clk 0:01:00]}  Nf6 {[%clk 0:02:07]} 18. Qf5+ {[%clk 0:00:59]}  Kb8 {[%clk 0:02:07]} 19. Be3 {[%clk 0:00:54]}  Qd3 {[%clk 0:01:52]} 20. Qf4 {[%clk 0:00:49]}  Qd6 {[%clk 0:01:20]} 21. Bc5 {[%clk 0:00:44]}  Qd2 {[%clk 0:01:13]} 22. Be3 {[%clk 0:00:41]}  Qxb2 {[%clk 0:01:04]} 23. Rc1 {[%clk 0:00:31]}  Rc8 {[%clk 0:00:49]} 24. Rec5 {[%clk 0:00:30]}  Ne8 {[%clk 0:00:24]} 25. R5c2 {[%clk 0:00:28]}  Qf6 {[%clk 0:00:21]} 26. Qb4 {[%clk 0:00:24]}  Qd6+ {[%clk 0:00:21]} 27. Qxd6 {[%clk 0:00:23]}  Nxd6 {[%clk 0:00:22]} 28. Bf4 {[%clk 0:00:23]}  Rhd8 {[%clk 0:00:21]} 29. a4 {[%clk 0:00:20]}  f6 {[%clk 0:00:20]} 30. Rc5 {[%clk 0:00:18]}  Rd7 {[%clk 0:00:20]} 31. Bg3 {[%clk 0:00:18]}  Ne4 {[%clk 0:00:19]} 32. R5c4 {[%clk 0:00:15]}  Nxg3 {[%clk 0:00:19]} 33. Kxg3 {[%clk 0:00:15]}  Rd3+ {[%clk 0:00:19]} 34. f3 {[%clk 0:00:15]}  c6 {[%clk 0:00:19]} 35. h4 {[%clk 0:00:15]}  Re8 {[%clk 0:00:19]} 36. h5 {[%clk 0:00:15]}  Rd2 {[%clk 0:00:20]} 37. Rg4 {[%clk 0:00:13]}  Re7 {[%clk 0:00:18]} 38. h6 {[%clk 0:00:12]}  gxh6 {[%clk 0:00:18]} 39. Rc5 {[%clk 0:00:11]}  Ree2 {[%clk 0:00:18]} 40. Kh3 {[%clk 0:00:11]}  Rd1 {[%clk 0:00:16]} 41. Rg8+ {[%clk 0:00:11]}  Ka7 {[%clk 0:00:15]} 42. a5 {[%clk 0:00:11]}  Rd5 {[%clk 0:00:15]} 43. Rc4 {[%clk 0:00:10]}  Rxa5 {[%clk 0:00:14]} 44. Rf4 {[%clk 0:00:08]}  Rh5+ {[%clk 0:00:14]} 45. Kg3 {[%clk 0:00:08]}  Rg5+ {[%clk 0:00:14]} 46. Rxg5 {[%clk 0:00:07]}  fxg5 {[%clk 0:00:15]} 47. Rf6 {[%clk 0:00:08]}  a5 {[%clk 0:00:14]} 48. Rxh6 {[%clk 0:00:08]}  a4 {[%clk 0:00:14]} 49. Rxh7 {[%clk 0:00:08]}  a3 {[%clk 0:00:14]} 50. Rh1 {[%clk 0:00:09]}  a2 {[%clk 0:00:13]} 51. Ra1 {[%clk 0:00:09]}  b5 {[%clk 0:00:14]} 52. Kh3 {[%clk 0:00:08]}  b4 {[%clk 0:00:14]} 53. f4 {[%clk 0:00:06]}  gxf4 {[%clk 0:00:14]} 54. Rxa2+ {[%clk 0:00:07]}  Rxa2 {[%clk 0:00:14]} 55. Kg4 {[%clk 0:00:00]}  Rxg2+ {[%clk 0:00:14]} 0-1


[Site "https://www.chess.com"]